bitfinex/quotes_ETHUSD_20251010
["timestamp","ask_amount","ask_price","bid_price","bid_amount"]
[1760110229638,0.59317886,4150.1,4150.0,6.42508087]
[1760110229855,0.0885,4150.1,4150.0,6.42508087]
[1760110230069,2.0085,4150.1,4150.0,6.42508087]
[1760110230271,2.51018041,4150.1,4147.7,6.01411846]
[1760110230474,30.0,4149.9,4147.7,6.01411846]
[1760110230674,0.74918041,4149.8,4147.7,6.01411846]
[1760110230967,1.92,4149.5,4147.7,6.01411846]
[1760110231146,5.710431,4149.2,4147.7,6.01411846]
[1760110231347,0.1485,4149.8,4147.7,9.82611846]
[1760110231553,0.099,4150.5,4147.8,0.98461185]
[1760110231872,30.0,4150.3,4147.7,6.01411846]
[1760110232181,0.227,4147.8,4147.7,6.01411846]
[1760110232379,0.327,4147.8,4147.7,6.01411846]
[1760110232678,6.265,4148.8,4147.7,6.01411846]
[1760110232839,0.1013,4148.7,4147.7,6.01411846]
[1760110233183,1.4853,4148.6,4147.7,6.01411846]
[1760110233379,0.2245,4147.8,4147.7,6.01411846]
[1760110233672,0.1037,4147.8,4147.7,6.01411846]
[1760110233848,33.3269,4147.8,4147.7,6.01411846]
[1760110234250,35.8369,4147.8,4147.7,6.01411846]
[1760110234667,36.33463775,4147.8,4147.7,6.01411846]
[1760110234866,1.92,4147.7,4147.1,0.00464015]
[1760110235040,2.41773775,4147.7,4147.1,0.00464015]
[1760110235239,2.41773775,4147.7,4146.2,0.00710331]
[1760110235240,30.0,4147.4,4146.2,0.00710331]
[1760110235544,1.92,4146.9,4146.2,0.00710331]
[1760110235742,1.92,4146.6,4141.9,1.23599188]
[1760110235991,0.0947,4144.1,4144.0,0.2037]
[1760110236140,0.0532,4144.1,4144.0,0.2037]
[1760110236342,0.0484,4146.0,4144.1,2.41302681]
[1760110236654,0.0484,4146.0,4144.2,0.26167268]
[1760110236987,0.0484,4146.0,4144.0,0.2037]
[1760110236988,1.92,4145.5,4144.0,0.2037]
[1760110237279,0.0484,4146.0,4144.0,0.2037]
[1760110237481,2.11054218,4150.1,4144.1,2.87116918]
[1760110237482,0.099,4147.2,4144.1,2.87116918]
[1760110237683,0.05,4146.0,4145.7,13.15391331]
[1760110237897,0.05,4146.0,4144.1,0.2346]
[1760110238102,0.05,4146.0,4144.0,0.2037]
[1760110238103,0.05,4146.0,4144.3,0.4581]
[1760110238415,0.05,4146.0,4145.4,13.15391331]
[1760110238706,0.099,4148.0,4145.4,2.41229541]
[1760110238891,0.099,4148.1,4145.5,13.61201331]
[1760110239089,3.195611,4147.9,4144.4,0.88561]
[1760110239394,5.530189,4147.7,4144.4,0.42751]
[1760110239564,28.281085,4147.5,4144.5,0.045]
[1760110239765,4.605772,4147.3,4145.0,2.41253492]
[1760110239982,0.090434,4147.2,4145.1,2.65370122]
[1760110240216,10.097917,4146.9,4144.4,0.42751]
[1760110240508,1.92,4146.4,4142.4,13.15391331]
[1760110240668,1.92,4146.4,4144.0,0.0755]
[1760110240669,30.0,4145.1,4144.0,0.0755]
[1760110240870,1.92,4144.8,4144.0,0.0755]
[1760110241071,30.0,4144.5,4144.0,0.0755]
[1760110241304,1.92,4144.4,4144.0,0.0755]
[1760110241485,31.92,4144.1,4144.0,0.0755]
[1760110241809,1.92,4144.1,4144.0,0.0755]
[1760110241970,31.92,4144.1,4144.0,0.0755]
[1760110242170,31.92,4144.1,4140.1,6.21039945]
[1760110242171,1.92,4144.0,4140.1,6.21039945]
[1760110242401,1.92,4142.8,4142.6,5.91857245]
[1760110242712,0.1471,4143.9,4140.1,6.21039945]
[1760110242713,35.64591331,4142.7,4140.1,6.21039945]
[1760110243011,13.15391331,4140.6,4140.1,3.28486845]
[1760110243246,1.92,4140.2,4137.7,1.25254747]
[1760110243405,1.92,4140.2,4136.4,0.004186]
[1760110243406,1.92,4139.1,4137.6,6.05984293]
[1760110243735,39.55354,4140.1,4137.6,0.61579954]
[1760110243736,13.15391331,4137.7,4137.6,0.61579954]
[1760110243919,1.92,4137.6,4133.8,1.29118792]
[1760110244128,1.92,4137.6,4132.5,6.40668044]
[1760110244129,30.0,4135.0,4132.9,1.29621027]
[1760110244300,7.35725079,4134.9,4132.5,6.40668044]
[1760110244634,1.92,4133.8,4132.2,1.28185755]
[1760110244835,13.15391331,4132.3,4131.8,0.004186]
[1760110245135,1.92,4131.9,4130.0,6.69288666]
[1760110245296,17.147972,4130.5,4129.0,1.22165306]
[1760110245495,17.147972,4130.3,4128.1,1.28162566]
[1760110245702,3.82,4130.9,4128.2,1.23264356]
[1760110245928,1.92,4130.9,4128.1,1.28162566]
[1760110246129,1.92,4130.5,4128.0,1.22509247]
[1760110246348,1.92,4128.0,4127.5,4.84091391]
[1760110246503,1.55450961,4127.9,4124.9,5.32910343]
[1760110246697,1.92,4125.7,4124.9,4.86910343]
[1760110246941,4.275223,4125.5,4124.9,4.86910343]
[1760110247140,4.275223,4125.3,4124.9,4.86910343]
[1760110247451,0.2724723,4126.9,4124.9,0.59388043]
[1760110247600,0.06,4128.0,4124.9,0.59388043]
[1760110247797,0.12607568,4128.0,4125.0,0.36]
[1760110248103,0.12607568,4128.0,4125.5,2.42394861]
[1760110248299,30.0,4132.9,4127.9,13.15391331]
[1760110248651,0.99999999,4136.4,4127.9,13.15391331]
[1760110248652,3.824,4132.8,4128.0,12.5637]
[1760110248795,3.2457775,4133.3,4128.0,12.5637]
[1760110248796,10.635288,4133.0,4129.6,13.15391331]
[1760110248999,11.579838,4133.3,4128.8,2.42201123]
[1760110249236,7.55,4135.8,4128.1,1.27931]
[1760110249237,30.0,4136.4,4129.7,0.4367]
[1760110249548,13.15391331,4134.1,4128.1,1.27931]
[1760110249853,1.92,4132.4,4128.0,0.12594154]
[1760110250149,30.0,4131.9,4128.0,13.27985485]
[1760110250330,20.14512888,4132.3,4128.9,13.15391331]
[1760110250331,3.827,4131.8,4128.9,13.15391331]
[1760110250499,2.322,4133.2,4129.1,1.92]
[1760110250708,30.0,4133.2,4129.4,1.92]
[1760110250957,2.322,4133.3,4127.3,8.55199999]
[1760110250958,3.828,4133.6,4130.9,13.15391331]
[1760110251155,10.073683,4133.5,4129.5,15.28907464]
[1760110251361,3.549495,4133.5,4129.6,2.42154203]
[1760110251561,6.293,4134.1,4131.4,1.92]
[1760110251763,15.166907,4134.6,4130.9,0.2294]
[1760110252064,2.014,4136.7,4132.2,13.15391331]
[1760110252214,2.014,4136.7,4132.3,1.31539133]
[1760110252215,3.798601,4136.2,4132.3,1.31539133]
[1760110252417,13.15391331,4136.1,4132.2,0.438]
[1760110252616,30.0,4136.0,4130.9,0.2294]
[1760110252916,31.92,4135.0,4130.1,3.828]
[1760110253144,31.92,4135.0,4129.5,4.55672615]
[1760110253145,13.15391331,4133.8,4124.8,3.273]
[1760110253343,1.92,4132.0,4127.6,2.42271363]
[1760110253543,10.124,4131.9,4129.5,2.42155315]
[1760110253744,10.124,4131.9,4127.7,17.22418467]
[1760110253745,3.385602,4131.6,4129.6,3.828]
[1760110253963,5.863471,4131.3,4129.1,3.543]
[1760110254163,6.296,4133.5,4129.3,13.15391331]
[1760110254419,3.829,4134.2,4130.2,1.92]
[1760110254573,6.296,4135.1,4131.9,1.92]
[1760110254778,6.297,4136.6,4132.0,0.4367]
[1760110255073,7.553959,4136.4,4132.0,0.4367]
[1760110255250,30.0,4139.1,4134.0,1.92]
[1760110255420,13.15391331,4139.4,4134.1,4.4951]
[1760110255421,3.829,4139.0,4134.1,4.4951]
[1760110255777,30.0,4137.9,4134.2,2.54551]
[1760110255919,2.43625,4137.7,4134.3,4.016]
[1760110256119,0.803,4137.9,4134.2,0.4367]
[1760110256355,0.803,4137.9,4133.2,0.4367]
[1760110256356,15.743985,4137.8,4133.2,0.4367]
[1760110256565,30.0,4137.7,4133.5,2.015]
[1760110256746,1.92,4137.4,4132.4,0.4367]
[1760110256958,30.0,4137.7,4132.9,0.4367]
[1760110257247,30.0,4137.7,4133.0,0.65101]
[1760110257447,3.829,4137.6,4133.1,3.1022]
[1760110257659,3.829,4138.2,4134.2,2.41884766]
[1760110257877,6.298,4140.3,4135.8,13.18477253]
[1760110258209,3.829,4140.2,4135.9,6.2882]
[1760110258367,19.48277253,4141.3,4135.9,6.2882]
[1760110258368,27.315525,4140.1,4135.9,0.4442]
[1760110258533,30.0,4139.9,4134.9,0.4442]
[1760110258721,30.0,4139.9,4132.1,1.96502728]
[1760110258722,31.92,4139.3,4133.4,13.18477253]
[1760110258922,1.92,4138.3,4133.5,2.41925535]
[1760110259264,30.0,4138.0,4133.6,2.881]
[1760110259470,1.92,4137.7,4132.3,0.4442]
[1760110259652,30.0,4137.4,4132.4,0.134]
[1760110259823,1.92,4137.8,4132.5,2.5932]
[1760110260021,1.92,4137.6,4132.6,5.85099725]
[1760110260224,3.829,4138.2,4133.4,2.41931581]
[1760110260436,13.18477253,4140.0,4136.3,2.41760736]
[1760110260641,6.297,4140.2,4137.5,2.41688904]
[1760110260863,3.829,4140.1,4137.6,0.732]
[1760110261076,2.321,4140.1,4137.7,1.465]
[1760110261224,2.015,4140.9,4137.8,0.1465]
[1760110261225,2.321,4140.6,4137.8,0.1465]
[1760110261865,2.321,4140.6,4137.8,2.41672759]
[1760110262176,2.321,4140.6,4137.9,1.734]
[1760110262177,2.087,4140.6,4137.9,1.734]
[1760110262328,2.087,4140.6,4138.1,2.41651031]
[1760110262528,4.481639,4140.5,4136.0,13.18477253]
[1760110262733,2.087,4140.6,4136.6,0.4442]
[1760110262941,4.21713,4140.5,4136.6,16.04640551]
[1760110263144,1.895,4140.6,4136.7,2.04884055]
[1760110263369,8.312,4141.5,4136.9,4.19213]
[1760110263370,2.038958,4140.7,4136.9,4.19213]
[1760110263582,2.823,4140.6,4137.0,2.3642]
[1760110263804,3.828,4140.7,4136.1,25.32577253]
[1760110263805,0.81947317,4142.2,4137.3,4.19213]
[1760110263953,2.128,4142.1,4137.9,2.41668479]
[1760110264158,0.81947317,4142.5,4138.2,1.92]
[1760110264498,0.81947317,4142.5,4138.1,4.14213]
[1760110264499,2.313159,4142.3,4138.4,1.92]
[1760110264699,2.313159,4142.3,4138.4,2.4163928]
[1760110264853,4.084529,4142.2,4138.3,0.4442]
[1760110265055,2.714172,4142.0,4138.4,3.829]
[1760110265358,3.832,4141.9,4138.4,3.832]
[1760110265582,0.141,4141.8,4140.1,2.41536837]
[1760110265806,0.141,4141.8,4138.7,2.41621765]
[1760110265807,6.295,4143.1,4139.9,0.141]
[1760110265988,6.295,4143.1,4140.0,1.834]
[1760110265989,2.744363,4142.9,4140.0,1.834]
[1760110266207,2.404978,4142.9,4140.1,0.085]
[1760110266410,2.404978,4142.9,4138.6,13.18477253]
[1760110266411,2.90536263,4142.9,4138.6,13.18477253]
[1760110266579,12.18117,4142.8,4138.7,3.61823925]
[1760110266774,0.50038463,4142.7,4139.0,2.41604252]
[1760110267000,6.583359,4142.9,4138.9,1.92]
[1760110267202,6.295,4144.4,4139.9,1.92]
[1760110267392,0.81947317,4144.7,4138.5,0.42762]
[1760110267393,3.846,4144.7,4140.8,1.92]
[1760110267587,3.13694,4145.0,4142.7,0.12585291]
[1760110267788,0.50037059,4145.0,4142.7,0.12585291]
[1760110268116,30.0,4144.3,4142.7,0.12585291]
[1760110268419,2.73947317,4143.8,4142.7,0.12585291]
[1760110268578,8.065587,4143.6,4142.7,0.12585291]
[1760110268780,0.81947317,4143.0,4137.1,0.4442]
[1760110269017,0.81947317,4141.6,4136.3,0.236]
[1760110269235,0.50037059,4141.6,4138.2,13.18477253]
[1760110269415,1.92,4143.4,4139.1,13.18477253]
[1760110269727,0.50274487,4143.7,4142.0,2.41427237]
[1760110269932,0.50274487,4143.7,4138.7,2.41616497]
[1760110269933,10.76869,4143.6,4139.5,0.4442]
[1760110270228,0.81947317,4142.8,4138.8,0.4442]
[1760110270390,1.2408162,4143.1,4138.3,0.236]
[1760110270391,1.92,4142.5,4138.3,0.236]
[1760110270590,1.92,4142.5,4137.0,2.013]
[1760110270591,1.92,4142.1,4137.0,2.013]
[1760110270791,12.394037,4141.5,4137.1,0.24572]
[1760110270990,0.81947317,4140.8,4137.1,0.19572]
[1760110271190,1.92,4140.5,4136.8,0.4442]
[1760110271410,1.92,4140.3,4136.3,0.236]
[1760110271609,1.92,4140.3,4136.0,0.4442]
[1760110271610,1.92,4139.8,4136.0,0.4442]
[1760110271813,22.805823,4139.5,4136.0,0.4442]
[1760110271997,0.5026516,4139.4,4136.0,0.4442]
[1760110272210,43.18477253,4138.9,4133.8,6.529]
[1760110272415,0.63025842,4137.8,4134.9,2.4183887]
[1760110272723,30.0,4137.3,4133.9,0.6529]
[1760110272878,30.0,4137.3,4132.0,13.18477253]
[1760110272879,0.63025842,4136.7,4133.5,1.513]
[1760110273082,1.92,4136.7,4133.6,0.946]
[1760110273286,1.92,4136.7,4132.6,6.293]
[1760110273287,0.63025842,4138.1,4133.7,1.0352]
[1760110273485,4.607387,4137.9,4133.7,0.4442]
[1760110273786,2.534,4137.6,4133.8,0.4442]
[1760110273997,0.63025842,4137.3,4133.7,2.41914023]
[1760110274199,0.63025842,4138.9,4134.7,13.18477253]
[1760110274400,2.15625842,4139.8,4138.0,2.41662198]
[1760110274721,2.15625842,4139.8,4134.8,14.7682]
[1760110274722,1.526,4139.8,4135.6,0.4442]
[1760110274925,1.526,4139.8,4136.0,1.92]
[1760110275128,30.0,4139.7,4138.9,0.003]
[1760110275340,30.0,4139.0,4138.9,0.003]
[1760110275492,30.0,4139.0,4133.5,2.014]
[1760110275493,13.18477253,4138.2,4133.0,2.014]
[1760110275690,0.63263588,4136.8,4133.3,13.18477253]
[1760110275999,0.015,4136.7,4132.4,0.4442]
[1760110276198,4.963125,4136.1,4132.5,5.66709725]
[1760110276508,0.50530189,4136.0,4132.5,4.3042]
[1760110276707,0.50716409,4136.9,4132.9,13.18477253]
[1760110276920,5.78,4136.8,4133.0,10.213545]
[1760110277120,1.92,4136.5,4132.9,13.18477253]
[1760110277326,1.92,4136.5,4131.0,13.62897253]
[1760110277327,0.63263588,4135.8,4131.0,13.62897253]
[1760110277526,0.63263588,4134.6,4131.4,3.859]
[1760110277829,0.63263588,4134.6,4131.3,1.36509725]
[1760110277830,0.63263588,4134.2,4131.3,1.36509725]
[1760110278015,4.90117,4133.8,4131.3,0.002]
[1760110278219,0.8435145,4133.2,4131.3,0.002]
[1760110278420,0.8435145,4132.4,4131.3,0.002]
[1760110278617,0.8435145,4132.0,4131.3,0.002]
[1760110278829,1.26527176,4131.7,4131.3,0.002]
[1760110279153,45.10477253,4131.4,4131.3,0.002]
[1760110279437,30.0,4131.3,4126.3,13.62897253]
[1760110279647,1.92,4130.0,4128.1,2.42240323]
[1760110279941,1.92,4130.0,4125.6,2.42387582]
[1760110279942,1.92,4129.6,4125.4,0.4442]
[1760110280088,1.27521072,4128.8,4124.8,0.4442]
[1760110280287,1.92,4129.4,4124.8,0.4442]
[1760110280288,1.7845482,4129.0,4126.6,2.42330136]
[1760110280488,0.00204206,4128.7,4126.7,0.24233014]
[1760110280694,2.313,4128.6,4126.4,0.15]
[1760110280915,2.313,4128.6,4125.0,15.60897492]
[1760110280916,1.92,4128.4,4125.6,0.093]
[1760110281097,0.50933748,4128.4,4126.9,2.42310603]
[1760110281298,0.50933748,4128.4,4124.5,2.015]
[1760110281299,7.8628,4128.2,4125.3,0.236]
[1760110281509,7.8628,4128.2,4124.0,2.42481226]
[1760110281510,2.42861522,4128.1,4125.2,2.147]
[1760110281709,13.75018,4127.8,4125.2,0.27408804]
[1760110281912,30.0,4124.9,4122.4,6.66838843]
[1760110282122,13.18477253,4123.7,4122.2,0.12613668]
[1760110282323,1.92,4124.7,4119.1,1.2258401]
[1760110282324,1.92,4122.7,4119.1,1.2258401]
[1760110282627,1.92,4122.7,4118.8,0.0078151]
[1760110282628,30.0,4120.7,4118.8,0.0078151]
[1760110282794,1.92,4119.6,4117.4,5.67735588]
[1760110282995,1.92,4119.6,4115.3,2.1374637]
[1760110282996,1.92,4119.4,4115.3,2.1374637]
[1760110283189,10.165,4119.3,4115.3,0.85580859]
[1760110283403,30.0,4119.2,4115.3,0.85580859]
[1760110283628,1.92,4118.8,4115.3,0.85580859]
[1760110283839,1.92,4118.6,4115.3,0.85580859]
[1760110283998,1.92,4118.4,4115.3,0.85580859]
[1760110284337,30.0,4118.1,4115.3,0.85580859]
[1760110284629,30.0,4117.1,4115.3,0.85580859]
[1760110284830,13.18477253,4117.3,4115.3,0.85580859]
[1760110284831,30.0,4116.8,4115.3,0.85580859]
[1760110285034,1.92,4116.3,4115.3,0.85580859]
[1760110285245,47.739,4116.2,4115.3,0.85580859]
[1760110285392,31.92,4115.5,4114.8,4.87535301]
[1760110285593,6.307,4115.7,4114.8,4.87535301]
[1760110285840,3.867,4115.6,4114.8,4.87535301]
[1760110286021,3.868,4115.5,4114.8,4.87535301]
[1760110286191,4.053053,4115.2,4114.8,4.87535301]
[1760110286398,30.0,4114.9,4114.8,4.87535301]
[1760110286632,14.034621,4114.9,4114.8,4.87535301]
[1760110287124,10.546,4114.9,4112.3,8.13571012]
[1760110287435,30.0,4113.6,4112.3,6.93009642]
[1760110287594,30.0,4113.4,4111.9,0.04]
[1760110287791,1.92,4111.3,4109.7,1.21954541]
[1760110287994,1.92,4111.3,4109.8,3.81285056]
[1760110287995,28.684758,4110.9,4109.8,3.81285056]
[1760110288244,1.92,4110.7,4109.8,0.33051182]
[1760110288444,34.6354,4109.9,4109.0,0.976186]
[1760110288609,34.6354,4109.9,4107.4,1.22898207]
[1760110288610,1.92,4109.4,4107.4,1.22898207]
[1760110288806,1.92,4109.4,4107.3,4.98163935]
[1760110288807,1.92,4109.0,4107.3,4.98163935]
[1760110289023,1.92,4109.0,4102.2,7.19180441]
[1760110289024,6.314,4108.2,4104.8,1.26894099]
[1760110289245,1.92,4107.6,4104.8,1.26894099]
[1760110289545,0.00204206,4109.8,4104.8,1.26894099]
[1760110289546,1.92,4106.5,4104.8,1.26894099]
[1760110289744,1.92,4106.5,4102.2,7.19180441]
[1760110289745,1.92,4106.3,4102.3,1.25589728]
[1760110290046,30.0,4105.1,4102.2,4.4256252]
[1760110290251,1.92,4104.3,4102.2,4.4256252]
[1760110290452,12.64448,4104.1,4102.2,4.86818772]
[1760110290623,5.325195,4105.3,4102.2,4.4256252]
[1760110290831,8.553,4104.0,4100.0,6.642288]
[1760110291031,3.284,4107.5,4100.7,1.21029857]
[1760110291032,6.4455,4105.0,4100.7,1.21029857]
[1760110291336,0.099,4105.5,4101.0,1.20425496]
[1760110291537,2.354882,4107.3,4104.9,2.4360749]
[1760110291751,6.321,4108.6,4104.2,0.4659]
[1760110291954,1.606,4108.5,4105.2,1.92]
[1760110292126,6.321,4108.6,4105.3,2.6699]
[1760110292314,3.984,4109.8,4105.6,2.43569758]
[1760110292518,13.1708,4109.7,4101.1,0.3692155]
[1760110292716,13.1708,4109.7,4101.5,6.324]
[1760110292717,30.0,4109.6,4101.5,6.324]
[1760110293039,6.325,4107.1,4101.2,1.21268418]
[1760110293214,41.60617799,4107.0,4098.7,1.24435236]
[1760110293415,31.92,4106.8,4101.5,13.18477253]
[1760110293616,31.92,4106.8,4100.3,1.23051966]
[1760110293617,0.4236,4106.7,4102.2,13.18477253]
[1760110293822,10.58088,4106.5,4102.4,1.26095334]
[1760110294025,4.32333,4106.5,4098.5,1.25014368]
[1760110294315,0.4236,4106.4,4104.6,13.18477253]
[1760110294646,6.326,4108.4,4103.4,1.22481388]
[1760110294647,0.4209,4107.3,4105.6,1.92]
[1760110294851,0.4209,4107.3,4103.3,0.4659]
[1760110294852,6.8713,4109.7,4106.1,1.92]
[1760110295059,0.4209,4108.5,4105.1,0.4659]
[1760110295367,0.419,4110.6,4106.2,2.025]
[1760110295513,0.4177,4110.5,4108.5,1.92]
[1760110295714,0.4177,4110.5,4108.4,27.68477253]
[1760110295922,0.4177,4113.2,4111.7,2.43202669]
[1760110296123,0.4166,4113.3,4111.9,1.92]
[1760110296322,0.4166,4113.3,4110.7,6.33]
[1760110296323,1.793,4113.9,4108.6,1.92]
[1760110296523,4.931876,4113.1,4108.8,1.92]
[1760110296847,2.4416,4113.0,4108.9,14.5]
[1760110297045,0.99999999,4111.1,4107.9,1.92]
[1760110297246,2.91999999,4110.8,4107.3,6.33]
[1760110297445,25.013498,4110.6,4107.3,6.33]
[1760110297647,0.4166,4112.2,4108.1,13.08135857]
[1760110297961,0.5596,4113.6,4110.4,1.92]
[1760110298165,0.143,4113.6,4110.6,1.92]
[1760110298362,0.4166,4113.9,4112.0,1.92]
[1760110298522,5.537368,4113.4,4110.7,14.5]
[1760110298726,25.993731,4112.3,4108.8,13.08135857]
[1760110298922,0.4166,4112.2,4111.2,0.02637942]
[1760110299751,1.022,4112.1,4111.2,0.02637942]
[1760110299935,0.4166,4113.6,4111.3,0.024]
[1760110300137,1.28799999,4115.4,4111.2,0.02637942]
[1760110300474,26.830161,4113.8,4111.2,0.02637942]
[1760110300642,0.2322,4111.3,4106.5,0.4659]
[1760110300964,4.21502,4111.2,4106.9,2.43492658]
[1760110301164,0.99999999,4109.5,4105.9,6.331]
[1760110301374,2.084,4110.0,4106.0,4.01]
[1760110301524,1.92,4111.1,4106.0,4.01]
[1760110301730,1.92,4113.8,4106.2,2.43534167]
[1760110301953,2.376975,4111.1,4106.3,0.4659]
[1760110302175,0.99999999,4107.9,4105.7,6.332]
[1760110302324,0.99999999,4107.9,4103.5,7.598]
[1760110302325,3.960936,4107.6,4103.4,1.22481388]
[1760110302530,1.2974,4107.8,4101.3,1.23846477]
[1760110302531,0.99999999,4104.8,4101.3,1.23846477]
[1760110302726,0.99999999,4104.0,4100.4,1.21342392]
[1760110302927,1.92,4103.7,4098.0,1.22443829]
[1760110303133,0.7159,4103.9,4097.9,1.29690146]
[1760110303134,30.0,4103.5,4097.9,1.29690146]
[1760110303374,30.0,4103.3,4097.9,1.29690146]
[1760110303576,0.3699,4103.2,4097.9,1.29690146]
[1760110303748,30.0,4103.0,4097.9,1.29690146]
[1760110303949,30.0,4102.8,4097.9,1.29690146]
[1760110304152,0.99999999,4101.7,4097.9,1.27130799]
[1760110304445,20.59674209,4102.9,4097.9,1.22112686]
[1760110304446,30.0,4100.6,4097.9,1.22112686]
[1760110304658,0.25484209,4100.5,4097.9,1.22112686]
[1760110304833,30.0,4100.3,4097.7,0.003]
[1760110305034,30.0,4099.5,4097.2,8.45908418]
[1760110305255,1.92,4099.3,4097.2,8.45908418]
[1760110305441,38.9433,4097.3,4096.0,1.20780643]
[1760110305642,7.605,4096.4,4092.2,1.24843153]
[1760110305844,1.21204346,4095.5,4095.0,3.23701621]
[1760110306042,1.21204346,4095.5,4092.2,1.27703452]
[1760110306043,30.0,4095.0,4092.2,1.27703452]
[1760110306275,2.028,4094.4,4092.2,1.2034268]
[1760110306483,37.8693,4093.9,4092.2,1.2034268]
[1760110306678,37.8693,4093.9,4092.1,6.36834592]
[1760110306679,35.005096,4093.8,4092.1,0.45113272]
[1760110306835,4.03,4093.8,4092.1,0.45113272]
[1760110307039,2.028,4095.8,4092.1,0.40113272]
[1760110307239,22.607096,4095.6,4092.1,0.40113272]
[1760110307439,4.033,4095.7,4092.1,0.40113272]
[1760110307635,22.607096,4095.5,4092.1,0.27563272]
[1760110307842,4.22359171,4095.7,4089.7,1.25084339]
[1760110307843,2.029,4092.8,4089.7,1.25084339]
[1760110308088,2.03,4089.9,4086.5,1.21947313]
[1760110308290,1.70833514,4089.8,4086.5,1.21947313]
[1760110308574,1.70833514,4089.8,4085.0,1.5]
[1760110308575,1.92,4089.7,4085.0,1.23537563]
[1760110308778,14.059062,4089.5,4085.0,1.23537563]
[1760110308977,8.589,4089.4,4085.0,1.26977933]
[1760110309134,18.136062,4089.3,4085.0,1.26977933]
[1760110309338,14.059062,4089.2,4085.0,1.27791526]
[1760110309533,14.059062,4088.4,4085.0,1.27791526]
[1760110309739,9.789843,4088.2,4085.0,1.27791526]
[1760110309969,14.059062,4092.0,4085.0,1.27791526]
[1760110310190,14.059062,4092.0,4084.9,0.42601642]
[1760110310191,0.00204206,4088.1,4085.5,1.26684122]
[1760110310391,0.00204206,4088.1,4085.7,1.26207241]
[1760110310608,0.09954,4094.8,4085.8,2.4475011]
[1760110310609,39.5885,4092.4,4085.8,2.4475011]
[1760110310741,14.059062,4092.0,4086.7,2.44696209]
[1760110310936,14.059062,4092.0,4086.7,1.92]
[1760110311135,14.059062,4092.0,4086.7,0.4731]
[1760110311376,14.059062,4092.0,4086.2,1.25148659]
[1760110311377,14.059062,4091.8,4086.8,4.104]
[1760110311577,4.107,4091.7,4088.8,1.24575678]
[1760110311773,12.680746,4091.5,4087.0,15.70538605]
[1760110312082,6.26251921,4091.4,4085.1,1.22417108]
[1760110312251,10.38238,4091.2,4085.1,1.22417108]
[1760110312451,10.38238,4091.0,4088.6,2.44580369]
[1760110312655,0.26396793,4092.0,4086.5,1.20022469]
[1760110312656,10.38238,4092.0,4086.5,1.20022469]
[1760110312855,10.38238,4091.8,4086.8,1.29299738]
[1760110313035,10.38238,4091.8,4085.1,1.22417108]
[1760110313241,10.38238,4091.6,4085.1,1.22417108]
[1760110313466,39.5885,4091.2,4085.3,1.23108327]
[1760110313668,8.159304,4091.0,4085.5,1.26684122]
[1760110313900,7.979191,4092.0,4085.9,1.28193952]
[1760110314101,0.85671294,4097.2,4086.3,1.27006154]
[1760110314102,3.305,4095.1,4086.3,1.27006154]
[1760110314302,0.04046,4097.2,4092.0,2.44379276]
[1760110314489,1e-08,4092.1,4092.0,16.94379276]
[1760110314690,39.5885,4098.8,4092.0,16.94379276]
[1760110314691,7.979191,4098.7,4092.1,1.92]
[1760110314890,7.979191,4098.7,4091.0,1.25166387]
[1760110314891,7.979191,4098.7,4092.3,1.92]
[1760110315079,0.0015,4101.2,4092.3,1.92]
[1760110315080,1.23498904,4100.1,4092.4,1.38872422]
[1760110315275,3.306,4102.1,4092.9,14.5794751]
[1760110315508,7.979191,4101.9,4096.4,1.92]
[1760110315708,7.979191,4102.1,4096.6,1.92]
[1760110315919,7.979191,4103.7,4096.7,2.18411]
[1760110316071,7.979191,4103.8,4096.8,0.4731]
[1760110316273,4.114,4103.7,4099.5,14.5]
[1760110316608,0.81625294,4107.2,4099.6,14.8991]
[1760110316828,9.8001,4107.1,4100.4,14.5794751]
[1760110316973,3.194373,4107.0,4100.5,3.85104751]
[1760110317175,1.18,4107.3,4103.7,14.5]
[1760110317414,2.034,4109.0,4103.9,2.43670654]
[1760110317415,1.18,4107.8,4103.9,2.43670654]
[1760110317616,0.81625294,4110.1,4103.9,1.92]
[1760110317798,7.979191,4110.0,4104.0,0.4444]
[1760110317980,7.979191,4110.8,4104.2,2.43652843]
[1760110318184,7.979191,4110.6,4105.9,14.5]
[1760110318404,4.116,4110.5,4105.9,14.9444]
[1760110318579,7.979191,4112.1,4105.9,0.4444]
[1760110318912,7.979191,4111.9,4105.2,0.163]
[1760110319096,7.979191,4111.9,4104.6,0.26915076]
[1760110319097,0.99999999,4111.3,4104.0,0.022]
[1760110319300,8.79544394,4111.5,4104.0,0.022]
[1760110319612,1.70028097,4113.0,4104.0,0.022]
[1760110319613,6.947383,4111.3,4105.6,14.5]
[1760110319815,7.979191,4112.2,4105.7,10.9134]
[1760110320014,7.979191,4112.0,4105.7,0.4444]
[1760110320222,7.979191,4112.0,4105.2,0.164]
[1760110320533,7.979191,4112.2,4108.0,2.43427182]
[1760110320679,7.979191,4113.1,4108.8,2.43376627]
[1760110320872,7.979191,4113.1,4108.1,1.797]
[1760110321094,7.979191,4113.1,4108.2,2.763]
[1760110321291,2.441044,4113.1,4108.3,1.1064]
[1760110321502,1.24030833,4115.8,4108.4,2.43403758]
[1760110321701,1.20932466,4115.4,4108.5,2.4764]
[1760110321980,0.81625294,4117.7,4108.5,2.4764]
[1760110321981,5.65589,4117.0,4111.1,2.432439]
[1760110322180,7.476403,4116.8,4113.3,2.43113616]